bitfinex-derivatives/quotes_BNBF0:USTF0_20250529
["timestamp","ask_amount","ask_price","bid_price","bid_amount"]
[1748518060079,1.02478468,685.72,685.05,0.56805238]
[1748518060280,1.02478468,685.71,685.06,0.56805585]
[1748518060474,1.02478468,685.7,685.07,0.56805585]
[1748518060678,1.02478468,685.69,685.08,0.56805585]
[1748518060882,1.02478468,685.68,685.09,0.56805585]
[1748518061074,1.02478468,685.67,685.1,0.56805585]
[1748518061278,1.02492167,685.66,685.11,0.5681293]
[1748518061476,0.2916132,685.84,685.05,0.486]
[1748518061678,1.0250654,685.83,685.06,0.56823186]
[1748518061979,1.02506538,685.82,685.07,0.56823042]
[1748518062175,0.2916132,685.84,685.08,0.5682212]
[1748518062377,0.2916132,685.84,685.09,0.56822561]
[1748518062578,0.2916132,685.84,685.1,0.56822776]
[1748518062778,1.02507059,685.83,685.05,0.486]
[1748518062976,0.2916132,685.84,685.05,0.486]
[1748518064484,1.02507077,685.83,685.05,0.486]
[1748518064680,0.2916132,685.84,685.06,0.56819815]
[1748518064880,1.02507067,685.83,685.07,0.56820155]
[1748518065083,1.02507069,685.82,685.08,0.56819186]
[1748518065281,1.02507069,685.81,685.09,0.56819186]
[1748518065485,0.2916132,685.84,685.05,0.486]
[1748518065785,1.02526257,685.83,685.06,0.56829582]
[1748518065984,1.02526257,685.82,685.07,0.56829582]
[1748518066179,1.02526376,685.81,685.08,0.56829925]
[1748518066486,1.02526351,685.8,685.09,0.56829911]
[1748518066785,1.02526229,685.79,685.1,0.56829671]
[1748518066985,0.2916132,685.84,685.11,0.56829671]
[1748518066986,1.02534972,685.78,685.11,0.56829671]
[1748518067281,0.2916132,685.84,685.05,0.486]
[1748518067586,1.02546611,685.83,685.06,0.56842307]
[1748518067779,1.02546611,685.82,685.07,0.56842307]
[1748518067980,1.02546611,685.82,685.05,0.486]
[1748518067981,1.02546611,685.81,685.08,0.56842307]
[1748518068185,1.02546611,685.8,685.09,0.56842307]
[1748518068387,1.02546544,685.79,685.05,0.486]
[1748518068584,1.02546845,685.78,685.06,0.56841952]
[1748518068783,1.02547333,685.77,685.05,0.486]
[1748518068982,1.02547781,685.76,685.06,0.5684346]
[1748518069186,1.02546199,685.75,685.07,0.5684346]
[1748518069386,1.02546199,685.74,685.08,0.5684346]
[1748518069686,1.02546199,685.74,685.05,0.486]
[1748518069687,1.02546199,685.73,685.09,0.5684346]
[1748518069882,0.2916132,685.84,685.1,0.5684346]
[1748518070085,0.2916132,685.84,685.11,0.56842205]
[1748518070288,0.2916132,685.84,685.12,0.56839892]
[1748518070489,1.02543173,685.83,685.13,0.56839017]
[1748518070684,1.02542998,685.82,685.14,0.5683892]
[1748518070882,1.02542998,685.81,685.15,0.5683892]
[1748518071084,0.2916132,685.84,685.05,0.486]
[1748518071085,1.02542998,685.8,685.16,0.5683892]
[1748518071288,1.02542998,685.79,685.17,0.5683892]
[1748518071582,1.02542998,685.79,685.05,0.486]
[1748518071583,1.02542998,685.78,685.18,0.5683892]
[1748518071788,1.02542998,685.77,685.19,0.5683892]
[1748518071986,1.02542998,685.76,685.2,0.5683892]
[1748518072188,1.02542636,685.75,685.21,0.56838533]
[1748518072386,1.02542636,685.74,685.22,0.56838533]
[1748518072588,1.02540239,685.73,685.23,0.568371]
[1748518072886,1.02540239,685.72,685.24,0.568371]
[1748518073084,1.02540239,685.71,685.25,0.568371]
[1748518073287,1.02539214,685.7,685.26,0.568371]
[1748518073487,1.02539214,685.69,685.27,0.568371]
[1748518073684,1.02538449,685.68,685.28,0.568371]
[1748518073889,1.02606859,685.67,685.29,0.56835705]
[1748518074088,1.02606859,685.66,685.3,0.56835705]
[1748518074389,1.02606859,685.65,685.31,0.56835705]
[1748518074690,1.02606741,685.64,685.05,0.486]
[1748518074883,1.02606741,685.63,685.06,0.56835196]
[1748518075084,1.02606741,685.63,685.05,0.486]
[1748518075085,0.2916132,685.84,685.05,0.486]
[1748518075287,1.02604286,685.83,685.06,0.56834016]
[1748518075485,1.02604286,685.82,685.07,0.56834016]
[1748518075689,1.02607359,685.81,685.08,0.56840253]
[1748518075885,1.02607359,685.8,685.09,0.56840253]
[1748518076089,0.2916132,685.84,685.1,0.56840253]
[1748518076090,1.02609219,685.79,685.1,0.56840253]
[1748518076288,1.02589796,685.78,685.11,0.56832085]
[1748518076483,1.02590489,685.77,685.12,0.5683261]
[1748518076688,1.02590489,685.76,685.13,0.5683261]
[1748518076888,1.02590489,685.75,685.14,0.56832805]
[1748518077089,1.02590489,685.74,685.15,0.56832805]
[1748518077386,1.02590489,685.73,685.16,0.56832805]
[1748518077584,1.02590489,685.72,685.17,0.56832805]
[1748518077788,1.02573927,685.71,685.18,0.56823216]
[1748518077989,0.2916132,685.84,685.05,0.486]
[1748518078189,1.02573927,685.83,685.06,0.56823056]
[1748518078486,1.02573927,685.82,685.07,0.56823056]
[1748518078686,1.02562073,685.81,685.08,0.56816744]
[1748518078885,1.02561977,685.8,685.09,0.56816608]
[1748518079087,1.02561977,685.79,685.1,0.56816608]
[1748518079290,1.02552173,685.78,685.11,0.56810306]
[1748518079490,1.02552173,685.77,685.12,0.5679982]
[1748518079685,1.02552173,685.76,685.13,0.56799862]
[1748518079884,1.02552173,685.75,685.14,0.56799862]
[1748518080185,1.02551184,685.74,685.15,0.56798439]
[1748518080385,1.02551184,685.73,685.16,0.56798439]
[1748518080589,1.02551184,685.72,685.17,0.56798439]
[1748518080887,1.02551184,685.71,685.18,0.56798439]
[1748518081090,0.2916132,685.84,685.05,0.486]
[1748518081285,1.02551433,685.83,685.06,0.56794436]
[1748518081589,1.02545492,685.82,685.07,0.56800096]
[1748518081786,1.02545492,685.81,685.08,0.56800096]
[1748518081989,1.02545349,685.8,685.09,0.56799676]
[1748518082185,0.2916132,685.84,685.1,0.56799676]
[1748518082186,1.02545349,685.79,685.1,0.56799676]
[1748518082391,1.02545349,685.78,685.11,0.56799326]
[1748518082590,0.2916132,685.84,685.05,0.486]
[1748518082591,1.02544892,685.77,685.12,0.56799037]
[1748518082888,1.02544892,685.76,685.13,0.56799037]
[1748518083086,1.02530887,685.75,685.14,0.56791512]
[1748518083287,0.2916132,685.84,685.05,0.486]
[1748518083690,0.2916132,685.84,685.06,0.56790537]
[1748518083891,0.2916132,685.84,685.07,0.56790016]
[1748518084088,0.2916132,685.84,685.05,0.486]
[1748518086190,1.02530228,685.83,685.06,0.56775572]
[1748518086390,0.2916217,685.82,685.05,0.486]
[1748518086594,1.02530324,685.81,685.06,0.56776219]
[1748518086788,1.02530324,685.8,685.07,0.56776219]
[1748518086993,1.02530324,685.79,685.08,0.56776219]
[1748518087193,1.02530324,685.78,685.09,0.56776219]
[1748518087495,1.02519278,685.77,685.1,0.56770211]
[1748518087794,0.2916217,685.82,685.11,0.56770211]
[1748518087989,1.02510736,685.81,685.12,0.56765479]
[1748518088190,1.02510736,685.8,685.05,0.486]
[1748518088389,1.02510736,685.79,685.06,0.56765479]
[1748518088595,1.02510736,685.78,685.07,0.56765479]
[1748518088795,1.02510736,685.77,685.08,0.56765479]
[1748518088994,1.02510736,685.76,685.09,0.56765479]
[1748518089296,1.02503907,685.75,685.1,0.56763087]
[1748518089491,1.02503907,685.74,685.11,0.56763098]
[1748518089798,1.02503907,685.73,685.12,0.5676314]
[1748518089995,1.02503907,685.72,685.13,0.5676314]
[1748518090192,0.2916217,685.82,685.14,0.5676314]
[1748518090393,1.02498731,685.81,685.15,0.5676314]
[1748518090699,1.02498731,685.8,685.16,0.5676314]
[1748518090893,0.2916217,685.82,685.17,0.5676314]
[1748518090894,1.02498731,685.79,685.17,0.5676314]
[1748518091197,1.02498731,685.79,685.05,0.486]
[1748518091198,1.02498731,685.78,685.18,0.5676314]
[1748518091398,1.02498731,685.77,685.19,0.56763233]
[1748518091698,0.2916217,685.82,685.2,0.56764425]
[1748518091898,1.02494553,685.81,685.21,0.56764425]
[1748518092098,1.02491269,685.8,685.22,0.56762698]
[1748518092295,1.0243536,685.79,685.23,0.56762698]
[1748518092495,1.02435483,685.78,685.24,0.56762678]
[1748518092698,0.2916217,685.82,685.05,0.486]
[1748518092995,0.2916217,685.82,685.06,0.56762318]
[1748518093201,0.2916217,685.82,685.05,0.486]
[1748518093202,1.0243536,685.81,685.07,0.56762318]
[1748518093399,1.0243536,685.8,685.08,0.56762318]
[1748518093693,1.024325,685.79,685.09,0.56761154]
[1748518093900,0.2916217,685.82,685.05,0.486]
[1748518094094,0.2916217,685.82,685.06,0.56760732]
[1748518094294,0.2916217,685.82,685.07,0.56760732]
[1748518094501,0.2916217,685.82,685.05,0.486]
[1748518094701,1.02432611,685.81,685.05,0.486]
[1748518094899,1.02432611,685.8,685.06,0.56761009]
[1748518095100,1.02432611,685.79,685.07,0.56761009]
[1748518095298,1.02432611,685.78,685.08,0.56761009]
[1748518095497,1.02432611,685.78,685.05,0.486]
[1748518095498,1.02432611,685.77,685.09,0.56761009]
[1748518095699,1.02432611,685.76,685.1,0.56761009]
[1748518095899,1.02432611,685.75,685.05,0.486]
[1748518096103,1.02418044,685.74,685.06,0.56759778]
[1748518096298,0.2916217,685.82,685.05,0.486]
[1748518096701,1.02418044,685.81,685.05,0.486]
[1748518096997,0.2916217,685.82,685.05,0.486]
[1748518097597,1.02416469,685.81,685.05,0.486]
[1748518097902,0.2916217,685.82,685.05,0.486]
[1748518098098,1.02416471,685.81,685.05,0.486]
[1748518098304,0.2916217,685.82,685.05,0.486]
[1748518098503,1.02414416,685.81,685.05,0.486]
[1748518098698,1.02414416,685.8,685.06,0.56757517]
[1748518098898,1.02414416,685.79,685.07,0.56757517]
[1748518099201,1.02414416,685.78,685.08,0.56757517]
[1748518099400,1.02414416,685.78,685.05,0.486]
[1748518099401,0.2916217,685.82,685.05,0.486]
[1748518099601,1.02301828,685.81,685.06,0.56756796]
[1748518099801,1.02301867,685.8,685.07,0.56757014]
[1748518100001,0.2916217,685.82,685.05,0.486]
[1748518100202,0.2916217,685.82,685.06,0.56757003]
[1748518100403,0.2916217,685.82,685.05,0.486]
[1748518101105,0.2916217,685.82,685.06,0.56756691]
[1748518101405,0.2916217,685.82,685.05,0.486]
[1748518101801,1.0230175,685.81,685.06,0.56756892]
[1748518102005,1.0229954,685.8,685.07,0.56755683]
[1748518102205,0.2916217,685.82,685.05,0.486]
[1748518102706,1.0229954,685.81,685.05,0.486]
[1748518102904,0.2916217,685.82,685.06,0.56755456]
[1748518103206,0.2916217,685.82,685.05,0.486]
[1748518103207,1.02299785,685.81,684.79,0.46344326]
[1748518103401,0.2916217,685.82,684.8,0.56756017]
[1748518103601,0.2916217,685.82,684.44,0.46344326]
[1748518103800,0.2916217,685.82,684.45,0.85976951]
[1748518104106,0.2916217,685.82,684.46,0.85976524]
[1748518104405,0.2916217,685.82,684.46,0.29220115]
[1748518105201,0.2916217,685.82,684.47,0.574]
[1748518105607,1.02302394,685.81,684.47,0.574]
[1748518105803,0.2916217,685.82,684.47,0.574]
[1748518106003,1.02302466,685.81,684.47,0.574]
[1748518106209,0.2916217,685.82,684.48,0.56810961]
[1748518106409,0.2916217,685.82,684.49,0.56812914]
[1748518106709,0.2916217,685.82,684.47,0.574]
[1748518106910,0.2916217,685.82,684.48,0.56812952]
[1748518107105,1.02303903,685.81,684.49,0.56812952]
[1748518107307,1.02303903,685.8,684.5,0.56812952]
[1748518107512,0.2916217,685.82,684.51,0.56814013]
[1748518107812,0.2916217,685.82,684.47,0.574]
[1748518108011,1.02296725,685.81,684.48,0.56813782]
[1748518108206,1.02296689,685.8,684.49,0.5681354]
[1748518108407,1.02296689,685.79,684.5,0.5681354]
[1748518108607,1.02296689,685.78,684.51,0.5681354]
[1748518108810,1.02296689,685.77,684.52,0.5681354]
[1748518109010,1.02296689,685.76,684.53,0.5681354]
[1748518109311,1.02291043,685.75,684.54,0.56810317]
[1748518109507,1.02291043,685.74,684.55,0.56809924]
[1748518109707,1.02291043,685.73,684.56,0.56809924]
[1748518109911,1.02291165,685.72,684.57,0.56811605]
[1748518110111,0.2916217,685.82,684.58,0.56811605]
[1748518110112,1.02291165,685.71,684.58,0.56811605]
[1748518110308,1.02291165,685.7,684.59,0.56811605]
[1748518110512,1.02291165,685.69,684.6,0.56811605]
[1748518110713,1.02291165,685.68,684.61,0.56811605]
[1748518110915,1.02282191,685.67,684.62,0.56814687]
[1748518111210,1.02282191,685.66,684.63,0.56815121]
[1748518111413,1.02282191,685.65,684.64,0.56815121]
[1748518111614,1.02282164,685.64,684.65,0.56815121]
[1748518111815,0.2916217,685.82,684.82,0.46344326]
[1748518111816,1.02282164,685.63,684.82,0.46344326]
[1748518112015,1.02278791,685.62,684.83,0.5681546]
[1748518112311,1.02278791,685.61,684.84,0.5681546]
[1748518112614,1.02278791,685.6,684.85,0.5681546]
[1748518112814,1.02278791,685.59,684.86,0.5681546]
[1748518113015,1.02278791,685.58,684.87,0.5681546]
[1748518113211,1.02278791,685.57,684.88,0.5681546]
[1748518113515,1.02276335,685.56,684.89,0.56813391]
[1748518113710,1.02276335,685.55,684.9,0.56813391]
[1748518113910,1.02273778,685.54,684.91,0.56812041]
[1748518114209,1.02273778,685.53,684.92,0.56812041]
[1748518114510,0.2916217,685.82,684.82,0.46344326]
[1748518114712,1.02276485,685.81,684.83,0.56810608]
[1748518114911,1.02276485,685.8,684.84,0.56810608]
[1748518115112,1.02276485,685.79,684.85,0.56810608]
[1748518115311,1.02254754,685.78,684.86,0.56810608]
[1748518115515,1.02253987,685.77,684.87,0.56807928]
[1748518115716,1.02254172,685.76,684.88,0.56808376]
[1748518116018,1.02254172,685.75,684.89,0.56808376]
[1748518116215,1.02254172,685.74,684.9,0.56808376]
[1748518116418,1.02262707,685.73,684.91,0.56813481]
[1748518116713,1.02262707,685.72,684.92,0.56813481]
[1748518116912,1.02289264,685.71,684.93,0.56784261]
[1748518117217,1.02296675,685.7,684.94,0.56788309]
[1748518117416,1.02296675,685.69,684.95,0.56788309]
[1748518117618,1.02296842,685.68,684.96,0.56788309]
[1748518117812,1.02298804,685.67,684.97,0.56789654]
[1748518118016,1.02298804,685.66,684.98,0.56789654]
[1748518118214,1.02298804,685.66,684.56,0.46415016]
[1748518118215,1.02303125,685.65,684.99,0.56789654]
[1748518118416,1.0230317,685.64,685.0,0.56792204]
[1748518118618,0.2916217,685.82,684.55,0.46415016]
[1748518118815,1.02303169,685.81,684.56,0.5679246]
[1748518119115,1.0230838,685.8,684.56,0.46415016]
[1748518119418,0.2916217,685.82,684.57,0.56794993]
[1748518119614,0.2916217,685.82,684.72,0.46415016]
[1748518119821,1.02308323,685.81,684.73,0.56794871]
[1748518120116,1.02310508,685.8,684.74,0.56794871]
[1748518120320,0.2916217,685.82,684.86,0.46415016]
[1748518120721,1.02314493,685.81,684.86,0.46415016]
[1748518121022,1.02314529,685.8,684.86,0.46415016]
[1748518121215,1.02319367,685.79,684.86,0.46415016]
[1748518121423,0.2916217,685.82,684.86,0.46415016]
[1748518121721,0.2916217,685.82,684.87,0.56801027]
[1748518121916,0.2916217,685.82,684.86,0.46415016]
[1748518122319,0.2916217,685.82,684.87,0.56818978]
[1748518122616,0.2916217,685.82,684.86,0.46415016]
[1748518123017,1.0232502,685.81,684.86,0.46415016]
[1748518123221,0.2916217,685.82,684.86,0.46415016]
[1748518123522,0.2916217,685.82,684.87,0.56820511]
[1748518123722,0.2916217,685.82,684.86,0.46415016]
[1748518124217,0.2916217,685.82,684.85,0.46415016]
[1748518124623,0.2916217,685.82,684.94,0.46415016]
[1748518124822,0.2916217,685.82,684.9,0.46415016]
[1748518125417,0.2916217,685.82,684.91,0.56821075]
[1748518125619,0.2916217,685.82,684.91,0.46415016]
[1748518126021,0.2916217,685.82,684.92,0.56820922]
[1748518126218,1.02331565,685.81,684.91,0.46415016]
[1748518126417,0.2916217,685.82,684.91,0.46415016]
[1748518126622,1.02331687,685.81,684.91,0.46415016]
[1748518126922,1.02331809,685.8,684.9,0.46415016]
[1748518127223,0.2916217,685.82,684.9,0.46415016]
[1748518127425,1.02339842,685.81,684.9,0.46415016]
[1748518127618,0.2916217,685.82,684.91,0.56830831]
[1748518127822,0.2916217,685.82,684.9,0.46415016]
[1748518128117,1.02349712,685.81,684.9,0.46415016]
[1748518128317,0.2916217,685.82,684.91,0.46415016]
[1748518129021,1.02349582,685.81,684.92,0.46415016]
[1748518129222,0.2916217,685.82,684.93,0.46415016]
[1748518129425,1.02349335,685.81,684.93,0.46415016]
[1748518129623,0.2916217,685.82,684.94,0.56835045]
[1748518129925,0.2916217,685.82,684.93,0.46415016]
[1748518130322,0.2916217,685.82,684.95,0.46415016]
[1748518130727,1.02357018,685.81,684.95,0.46415016]
[1748518130928,1.02356977,685.8,684.95,0.46415016]
[1748518131225,0.2916217,685.82,684.95,0.46415016]
[1748518131825,0.2916217,685.82,684.96,0.46415016]
[1748518132026,1.02356918,685.81,684.96,0.46415016]
[1748518132321,0.2916217,685.82,684.94,0.46415016]
[1748518132721,1.0236724,685.81,684.94,0.46415016]
[1748518132923,1.0236724,685.8,684.95,0.56845332]
[1748518133126,0.2916217,685.82,684.94,0.46415016]
[1748518133924,0.2916217,685.82,684.95,0.56853288]
[1748518134124,1.02396777,685.81,684.96,1.03268304]
[1748518134324,1.02396741,685.8,684.97,0.56862374]
[1748518134522,0.2916217,685.82,684.98,0.56862054]
[1748518134722,0.2916217,685.82,685.02,0.46415016]
[1748518134927,0.2916217,685.82,685.03,0.56862201]
[1748518135123,1.02396864,685.81,685.0,0.46415016]
[1748518135329,0.2916217,685.82,685.01,0.56872718]
[1748518135524,0.2916217,685.82,685.02,0.56873603]
[1748518135724,0.2916217,685.82,685.03,0.5687275]
[1748518135924,1.02415542,685.81,685.0,0.46415016]
[1748518136124,0.2916217,685.82,685.0,0.46415016]
[1748518136726,0.2916217,685.82,684.47,0.36964421]
[1748518136727,0.2916217,685.82,684.97,0.46415016]
[1748518136931,0.2916217,685.82,685.01,0.514]
[1748518137127,0.2916217,685.82,685.02,0.56881937]
[1748518137333,0.2916217,685.82,685.01,0.514]
[1748518137533,1.0242184,685.81,685.01,0.514]
[1748518137832,0.2916217,685.82,685.01,0.514]
[1748518138028,0.2916217,685.82,685.02,0.56881499]
[1748518138239,0.2916217,685.82,685.01,0.514]
[1748518138240,1.02424626,685.81,685.01,0.514]
[1748518138532,0.2916217,685.82,685.01,0.514]
[1748518138738,1.02424582,685.81,685.01,0.514]
[1748518138936,0.2916217,685.82,685.01,0.514]
[1748518139136,1.02428178,685.81,685.01,0.514]
[1748518139333,0.2916217,685.82,685.02,0.56885518]
[1748518139532,0.2916217,685.82,685.01,0.514]
[1748518139833,0.2916217,685.82,685.02,0.56885898]
[1748518140136,1.02428236,685.81,685.03,0.56885898]
[1748518140332,0.2916217,685.82,685.04,0.56885898]
[1748518140539,1.02440774,685.81,685.05,0.5688597]
[1748518140833,0.2916217,685.82,685.01,0.514]
[1748518141039,0.2916217,685.82,685.02,0.5688597]
[1748518141239,0.2916217,685.82,685.01,0.514]
[1748518141434,1.02444546,685.81,685.02,0.56886961]
[1748518141738,0.2916217,685.82,685.01,0.514]
[1748518142235,1.02444423,685.81,685.01,0.514]
[1748518142540,1.02444423,685.8,685.01,0.514]
[1748518142734,0.2916217,685.82,685.02,0.56887456]
[1748518143034,1.02443225,685.81,685.03,0.56887011]
[1748518143237,0.2916217,685.82,685.04,0.56887145]
[1748518143434,0.2916217,685.82,685.01,0.514]
[1748518143934,1.02443279,685.81,685.01,0.514]
[1748518144139,1.02443279,685.8,685.02,0.56886287]
[1748518144335,0.2916217,685.82,685.03,0.56886221]
[1748518144536,0.2916217,685.82,685.04,0.56886211]
[1748518144735,0.2916217,685.82,685.05,0.56886211]
[1748518144940,0.2916217,685.82,685.06,0.56886775]
[1748518145138,0.2916217,685.82,685.01,0.514]
[1748518145738,1.02443297,685.81,685.01,0.514]
[1748518145942,0.2916217,685.82,685.01,0.514]
[1748518146341,1.0244322,685.81,685.01,0.514]
[1748518146542,1.02443227,685.8,685.01,0.514]
[1748518146742,0.2916217,685.82,685.01,0.514]
[1748518147141,1.02442122,685.81,685.01,0.514]
[1748518147340,0.2916217,685.82,685.01,0.514]
[1748518148447,0.2916217,685.82,685.02,0.568856]
[1748518148448,1.02440806,685.81,685.02,0.568856]
[1748518148643,0.2916217,685.82,685.01,0.514]
[1748518148846,1.02439567,685.81,685.02,0.56885056]
[1748518149044,0.2916217,685.82,685.01,0.514]
[1748518149247,1.02439932,685.81,685.01,0.514]
[1748518149445,0.2916217,685.82,685.01,0.514]
[1748518150345,1.02438537,685.81,685.01,0.514]
[1748518150546,1.02438537,685.8,685.01,0.514]
[1748518150849,1.02437543,685.79,685.01,0.514]
[1748518151050,0.2916217,685.82,685.01,0.514]
[1748518152643,1.0243647,685.81,685.02,0.56885156]
[1748518152846,0.2916217,685.82,685.03,0.56883214]
[1748518153049,1.0243647,685.81,685.04,0.56883214]
[1748518153249,0.2916217,685.82,685.05,0.56883214]
[1748518153250,1.0243647,685.8,685.05,0.56883214]
[1748518153450,1.02436158,685.79,685.06,0.56883214]
[1748518153745,0.2916217,685.82,685.07,0.56884497]
[1748518154051,1.02436894,685.81,685.08,0.56884497]
[1748518154345,1.024368,685.8,685.09,0.56884497]
[1748518154554,1.024368,685.79,685.1,0.56884497]
[1748518154750,1.024368,685.78,685.11,0.56884497]
[1748518155050,1.02436705,685.77,685.12,0.56884353]
[1748518155250,1.02436705,685.76,685.13,0.56884353]
[1748518155451,1.02436705,685.75,685.14,0.56884353]
[1748518155747,1.02434043,685.74,685.15,0.56884353]
[1748518155947,1.02434043,685.73,685.16,0.56884353]
[1748518156145,1.02434025,685.72,685.17,0.56884171]
[1748518156351,0.2916217,685.82,685.18,0.56884171]
[1748518156547,1.0243427,685.81,685.01,0.514]
[1748518156746,1.0243499,685.8,685.02,0.56885665]
[1748518156947,1.0243499,685.79,685.03,0.56885665]
[1748518157145,1.0243499,685.78,685.04,0.56885589]
[1748518157345,1.0243499,685.78,685.01,0.514]
[1748518157346,0.2916217,685.82,685.01,0.514]
[1748518157546,0.2916217,685.82,685.02,0.5688528]
[1748518157749,1.02436937,685.81,685.03,0.5688524]
[1748518157946,1.02436937,685.8,685.01,0.514]
[1748518158146,1.02436937,685.79,685.02,0.5688524]
[1748518158352,1.02436937,685.78,685.03,0.5688524]
[1748518158552,1.02436937,685.78,685.01,0.514]
[1748518158553,1.02436937,685.77,685.04,0.5688524]
[1748518158751,1.02436937,685.76,685.05,0.5688524]
[1748518158946,1.02441846,685.75,685.01,0.514]
[1748518159149,1.02441434,685.74,685.02,0.56885796]
[1748518159353,1.02441434,685.73,685.03,0.56885796]
[1748518159551,1.02441715,685.72,685.04,0.56882057]
[1748518159750,1.02441715,685.71,685.05,0.56882057]
[1748518159950,1.02442019,685.7,685.06,0.56882057]
[1748518160155,1.02442019,685.69,685.07,0.56882057]
[1748518160451,1.02463576,685.68,685.08,0.56880362]
[1748518160655,0.2916217,685.82,685.09,0.56879489]
[1748518160855,0.2916217,685.82,685.1,0.56879488]
[1748518161056,1.02464639,685.81,685.11,0.56879488]
[1748518161256,1.02464689,685.8,685.12,0.56877873]
[1748518161453,1.02464689,685.79,685.13,0.56877873]
[1748518161652,1.02464689,685.78,685.14,0.56877873]
[1748518161855,1.02464689,685.77,685.15,0.56877768]
[1748518162150,1.02464689,685.76,685.16,0.56877768]
[1748518162355,1.02464689,685.75,685.17,0.56877768]
[1748518162556,1.02464689,685.74,685.18,0.56877768]
[1748518162757,1.02464689,685.73,685.19,0.56877768]
[1748518162962,1.02468331,685.72,685.2,0.56879931]
[1748518163149,0.2916217,685.82,685.21,0.56879239]
[1748518163355,1.02468447,685.81,685.22,0.56879752]
[1748518163550,1.02468447,685.8,685.23,0.56879752]
[1748518163756,1.02468447,685.79,685.24,0.56880004]
[1748518163953,1.02468447,685.79,685.01,0.514]
[1748518163954,1.02470124,685.78,685.25,0.56880692]
[1748518164154,1.02470124,685.77,685.26,0.56880692]
[1748518164353,1.02470124,685.76,685.27,0.56880692]
[1748518164553,1.02469982,685.75,685.28,0.56880944]
[1748518164757,1.02469982,685.74,685.29,0.56880944]
[1748518164956,0.2916217,685.82,685.3,0.56880944]
[1748518164957,1.02469982,685.73,685.3,0.56880944]
[1748518165157,1.02469982,685.72,685.31,0.56880944]
[1748518165457,1.02469982,685.71,685.32,0.56880944]
[1748518165758,1.02468237,685.7,685.33,0.56880908]
[1748518165954,1.02468237,685.69,685.34,0.56880908]
[1748518166159,1.02468237,685.68,685.35,0.56880908]
[1748518166454,1.02468237,685.68,685.01,0.514]
[1748518166455,1.02469649,685.67,685.36,0.56882108]
[1748518166655,1.02470853,685.66,685.37,0.56882895]
[1748518166857,1.02470853,685.65,685.38,0.56882895]
[1748518167059,1.02470906,685.64,685.39,0.5688298]
[1748518167354,1.02470906,685.63,685.4,0.5688298]
[1748518167558,1.02470906,685.62,685.41,0.5688298]
[1748518167758,1.02470906,685.61,685.42,0.5688298]
[1748518168061,1.02473672,685.6,685.43,0.56884066]
[1748518168254,1.02473672,685.59,685.44,0.56884331]
[1748518168454,1.02476659,685.58,685.45,0.56884089]
[1748518168653,1.02478658,685.57,685.46,0.56885241]
[1748518168853,1.02478658,685.56,685.47,0.56885241]
[1748518169054,1.02479883,685.55,685.48,0.5688587]
[1748518169255,1.02479883,685.54,685.49,0.5688587]
[1748518169454,1.02479883,685.53,685.01,0.514]
[1748518169657,1.02479883,685.52,685.02,0.56885525]
[1748518169858,1.02479883,685.51,685.03,0.56885525]
[1748518170055,1.02479883,685.5,685.04,0.56885525]
[1748518170256,1.02482622,685.49,685.05,0.56885525]
[1748518170461,1.02482745,685.48,685.06,0.56887024]
[1748518170654,1.02482745,685.47,685.07,0.56887024]
[1748518170860,0.2916217,685.82,685.01,0.514]
[1748518171161,1.02487523,685.81,685.02,0.56890125]
[1748518171460,1.02487523,685.8,685.03,0.56890141]
[1748518171661,1.02487523,685.79,685.04,0.56890141]
[1748518171956,0.2916217,685.82,685.05,0.5689339]
[1748518171957,1.02493632,685.78,685.05,0.5689339]
[1748518172161,1.02493632,685.77,685.06,0.5689339]
[1748518172360,1.02493632,685.76,685.07,0.5689339]
[1748518172557,0.2916217,685.82,685.01,0.514]
[1748518173061,1.02500264,685.81,685.02,0.56896048]
[1748518173261,1.02500217,685.8,685.01,0.514]
[1748518173460,0.2916217,685.82,685.02,0.56895917]
[1748518173655,0.2916217,685.82,685.01,0.514]
[1748518173854,1.02512499,685.81,685.01,0.514]
[1748518174061,0.2916217,685.82,685.01,0.514]
[1748518174360,1.02512463,685.81,685.02,0.5690195]
[1748518174556,0.2916217,685.82,685.01,0.514]
[1748518175357,0.2916217,685.82,685.02,0.56901513]
[1748518175557,0.2916217,685.82,685.01,0.514]
[1748518175756,1.02512084,685.81,685.02,0.56901809]
[1748518175958,0.2916217,685.82,685.01,0.514]
[1748518176360,1.02513496,685.81,685.01,0.514]
[1748518176657,0.2916217,685.82,685.01,0.514]
[1748518176959,1.02514418,685.81,685.01,0.514]
[1748518177261,0.2916217,685.82,685.01,0.514]
[1748518178056,0.2916217,685.82,684.79,0.46415016]
[1748518178256,1.02515452,685.81,684.82,0.46415016]
[1748518178458,1.02515607,685.8,684.83,0.56895282]
[1748518178661,1.02515607,685.8,684.82,0.46415016]
[1748518178662,0.2916217,685.82,684.82,0.46415016]
[1748518178858,0.2916217,685.82,684.83,0.56895185]